[Event "Skalica Open 2019"]
[Site "Skalica"]
[Date "2019.08.27"]
[Round "4.12"]
[White "Jun, Rudolf Jr."]
[Black "Karas, Marek"]
[Result "1/2-1/2"]
[ECO "C05"]
[WhiteElo "2114"]
[BlackElo "2233"]
[Annotator "NA"]
[PlyCount "97"]
[EventDate "2019.08.25"]
[EventType "swiss"]
[EventCountry "SVK"]
[SourceTitle "playchess.com"]
[Source "ChessBase"]
[SourceQuality "1"]
[TimeControl "40/5400+30:1800+30"]

1. e4 {[%emt 0:00:00]} e6 {[%emt 0:00:00]} 2. d4 {[%emt 0:01:28]} d5 {[%emt 0:00:00]} 3. Nd2 {[%emt 0:00:11]} Nf6 {[%emt 0:00:15]} 4. Bd3 {[%emt 0:00:10]} c5 {[%emt 0:00:08]} 5. dxc5 {[%emt 0:00:07]} dxe4 {[%emt 0:00:27]} 6. Nxe4 {[%emt 0:00:12]} Nxe4 {[%emt 0:00:07]} 7. Bxe4 {[%emt 0:00:09]} Qxd1+ {[%emt 0:00:06]} 8. Kxd1 {[%emt 0:00:07]} Bxc5 {[%emt 0:00:20]} 9. Ke2 {[%emt 0:00:09]} f5 {[%emt 0:00:07]} 10. Bd3 {[%emt 0:00:27]} Nc6 {[%emt 0:01:53]} 11. c3 {[%emt 0:00:36]} e5 {[%emt 0:02:10]} 12. Nh3 {[%emt 0:02:33]} h6 {[%emt 0:02:23]} 13. f3 {[%emt 0:00:44]} Be6 {[%emt 0:03:03]} 14. Be3 {[%emt 0:00:57]} Bxe3 {[%emt 0:01:38]} 15. Kxe3 {[%emt 0:00:07]} O-O-O {[%emt 0:00:59]} 16. Nf2 {[%emt 0:10:09]} Ne7 {[%emt 0:02:01]} 17. Ke2 {[%emt 0:02:20]} Nd5 {[%emt 0:04:23]} 18. g3 {[%emt 0:00:09]} Rhe8 {[%emt 0:02:46]} 19. Rad1 {[%emt 0:01:11]} Nf6 {[%emt 0:07:28]} 20. Bc2 {[%emt 0:01:58]} Bc4+ {[%emt 0:02:29]} 21. Ke1 {[%emt 0:02:24]} e4 {[%emt 0:08:55]} 22. Rxd8+ {[%emt 0:01:17]} Kxd8 {[%emt 0:02:03]} 23. fxe4 {[%emt 0:00:30]} fxe4 {[%emt 0:01:34]} 24. b3 {[%emt 0:01:14]} Bb5 {[%emt 0:02:41]} 25. c4 {[%emt 0:05:57]} Bc6 {[%emt 0:01:08]} 26. Rf1 {[%emt 0:02:22]} Kc7 {[%emt 0:07:37]} 27. Ke2 {[%emt 0:03:10]} Kd6 {[%emt 0:03:15]} 28. Nd1 {[%emt 0:04:04]} Bd7 {[%emt 0:09:48]} 29. Ne3 {[%emt 0:02:31]} Re5 {[%emt 0:04:34]} 30. Rf4 {[%emt 0:01:41]} Kc5 {[%emt 0:02:54]} 31. g4 {[%emt 0:02:19]} Kb4 {[%emt 0:04:56]} 32. h3 {[%emt 0:04:01]} Ka3 {[%emt 0:02:59]} 33. Kd2 {[%emt 0:02:11]} Kb4 {[%emt 0:03:25]} 34. Rf1 {[%emt 0:01:36]} a5 {[%emt 0:03:03]} 35. a3+ {[%emt 0:01:03]} Kc5 {[%emt 0:01:32]} 36. Kc3 {[%emt 0:00:16]} Kb6 {[%emt 0:03:08]} 37. Kd4 {[%emt 0:05:07]} Re8 {[%emt 0:00:42]} 38. Nd5+ {[%emt 0:00:06]} Nxd5 {[%emt 0:00:16]} 39. cxd5 {[%emt 0:00:06]} e3 {[%emt 0:01:03]} 40. Re1 {[%emt 0:00:46]} e2 {[%emt 0:00:24]} 41. Bd3 {[%emt 0:30:26]} Bb5 {[%emt 0:30:36]} 42. Bc4 {[%emt 0:00:13]} a4 {[%emt 0:03:13]} 43. Bxb5 {[%emt 0:01:02]} Kxb5 {[%emt 0:00:10]} 44. bxa4+ {[%emt 0:00:04]} Kb6 {[%emt 0:02:30]} 45. Kd3 {[%emt 0:01:25]} Re5 {[%emt 0:02:37]} 46. Rxe2 {[%emt 0:00:26]} Rxd5+ {[%emt 0:00:15]} 47. Kc4 {[%emt 0:00:25]} Rd7 {[%emt 0:00:22]} 48. Re5 {[%emt 0:00:32]} Rf7 {[%emt 0:01:01]} 49. Re3 {[%emt 0:03:25]} 1/2-1/2

[Event "Skalica Open 2019"]
[Site "Skalica"]
[Date "2019.08.27"]
[Round "4.13"]
[White "Skalsky, Alexandr"]
[Black "Husek, Martin"]
[Result "1/2-1/2"]
[ECO "C58"]
[WhiteElo "2128"]
[BlackElo "2182"]
[Annotator "NA"]
[PlyCount "64"]
[EventDate "2019.08.25"]
[EventType "swiss"]
[EventCountry "SVK"]
[SourceTitle "playchess.com"]
[Source "ChessBase"]
[SourceQuality "1"]
[TimeControl "40/5400+30:1800+30"]

1. e4 {[%emt 0:00:00]} e5 {[%emt 0:00:00]} 2. Nf3 {[%emt 0:00:00]} Nc6 {[%emt 0:00:00]} 3. Bc4 {[%emt 0:00:00]} Nf6 {[%emt 0:00:05]} 4. Ng5 {[%emt 0:00:00]} d5 {[%emt 0:00:13]} 5. exd5 {[%emt 0:00:00]} Na5 {[%emt 0:00:26]} 6. Bb5+ {[%emt 0:00:00]} c6 {[%emt 0:00:13]} 7. dxc6 {[%emt 0:00:00]} bxc6 {[%emt 0:00:10]} 8. Qf3 {[%emt 0:00:29]} Be7 {[%emt 0:00:14]} 9. Bd3 {[%emt 0:00:44]} h6 {[%emt 0:14:51]} 10. Ne4 {[%emt 0:00:19]} Nd5 {[%emt 0:00:20]} 11. Ng3 {[%emt 0:19:29]} g6 {[%emt 0:16:45]} 12. O-O {[%emt 0:04:57]} O-O {[%emt 0:05:09]} 13. Re1 {[%emt 0:06:20]} Bd6 {[%emt 0:02:47]} 14. Nc3 {[%emt 0:01:02]} Nb4 {[%emt 0:05:09]} 15. a3 {[%emt 0:11:44]} Nxd3 {[%emt 0:00:11]} 16. Qxd3 {[%emt 0:00:04]} Qc7 {[%emt 0:07:27]} 17. b4 {[%emt 0:05:28]} Nb7 {[%emt 0:00:40]} 18. Qe3 {[%emt 0:00:31]} g5 {[%emt 0:14:17]} 19. Nce4 {[%emt 0:05:28]} f5 {[%emt 0:02:57]} 20. Nxd6 {[%emt 0:12:23]} Nxd6 {[%emt 0:00:10]} 21. Bb2 {[%emt 0:00:35]} Nc4 {[%emt 0:07:39]} 22. Qb3 {[%emt 0:00:22]} Qf7 {[%emt 0:00:29]} 23. Bxe5 {[%emt 0:09:12]} f4 {[%emt 0:00:43]} 24. Nf1 {[%emt 0:03:33]} Be6 {[%emt 0:00:21]} 25. Bb2 {[%emt 0:01:35]} Rae8 {[%emt 0:06:57]} 26. d3 {[%emt 0:07:58]} f3 {[%emt 0:05:44]} 27. Rxe6 {[%emt 0:04:59]} Rxe6 {[%emt 0:00:31]} 28. Qxc4 {[%emt 0:02:30]} fxg2 {[%emt 0:00:26]} 29. Kxg2 {[%emt 0:02:27]} Qf3+ {[%emt 0:01:31]} 30. Kg1 {[%emt 0:00:01]} Qxf2+ {[%emt 0:00:16]} 31. Kh1 {[%emt 0:00:01]} Qf3+ {[%emt 0:01:22]} 32. Kg1 {[%emt 0:00:00]} Qf2+ {[%emt 0:00:44]} 1/2-1/2

[Event "Skalica Open 2019"]
[Site "Skalica"]
[Date "2019.08.27"]
[Round "4.14"]
[White "Gresova, Zuzana"]
[Black "Kapusta, Petr"]
[Result "0-1"]
[ECO "E90"]
[WhiteElo "2008"]
[BlackElo "2157"]
[Annotator "NA"]
[PlyCount "84"]
[EventDate "2019.08.25"]
[EventType "swiss"]
[EventCountry "SVK"]
[SourceTitle "playchess.com"]
[Source "ChessBase"]
[SourceQuality "1"]
[TimeControl "40/5400+30:1800+30"]

1. d4 {[%emt 0:00:00]} Nf6 {[%emt 0:00:00]} 2. c4 {[%emt 0:00:00]} g6 {[%emt 0:00:00]} 3. Nf3 {[%emt 0:00:26]} Bg7 {[%emt 0:00:01]} 4. Nc3 {[%emt 0:03:10]} O-O {[%emt 0:00:10]} 5. e4 {[%emt 0:02:45]} d6 {[%emt 0:00:05]} 6. Bg5 {[%emt 0:01:42]} h6 7. Be3 {[%emt 0:00:45]} Ng4 {[%emt 0:06:48]} 8. Be2 {[%emt 0:07:49]} Nxe3 {[%emt 0:02:00]} 9. fxe3 {[%emt 0:00:11]} Nc6 {[%emt 0:02:14]} 10. O-O {[%emt 0:01:51]} e5 {[%emt 0:03:47]} 11. d5 {[%emt 0:01:51]} Ne7 {[%emt 0:01:23]} 12. Rc1 {[%emt 0:04:12]} b6 {[%emt 0:03:19]} 13. Kh1 {[%emt 0:01:26]} f5 {[%emt 0:01:11]} 14. Bd3 {[%emt 0:04:52]} g5 {[%emt 0:08:01]} 15. b4 {[%emt 0:14:56]} a5 {[%emt 0:04:40]} 16. a3 {[%emt 0:00:54]} axb4 {[%emt 0:00:15]} 17. axb4 {[%emt 0:00:49]} f4 {[%emt 0:10:13]} 18. Qe1 {[%emt 0:03:08]} Ng6 {[%emt 0:03:58]} 19. Nb5 {[%emt 0:08:57]} g4 {[%emt 0:04:32]} 20. Nd2 {[%emt 0:01:09]} Ra2 {[%emt 0:00:18]} 21. Rc2 {[%emt 0:01:35]} Rxc2 {[%emt 0:03:45]} 22. Bxc2 {[%emt 0:00:12]} Bd7 {[%emt 0:10:23]} 23. Nc3 {[%emt 0:03:04]} Qg5 {[%emt 0:04:59]} 24. Nd1 {[%emt 0:03:16]} g3 {[%emt 0:02:53]} 25. hxg3 {[%emt 0:08:06]} fxg3 {[%emt 0:00:41]} 26. Rxf8+ {[%emt 0:01:08]} Bxf8 {[%emt 0:02:28]} 27. Nf3 {[%emt 0:01:11]} Qg4 {[%emt 0:00:39]} 28. Nc3 Nh4 {[%emt 0:00:41]} 29. Ng1 {[%emt 0:03:59]} Ng6 {[%emt 0:09:26]} 30. Nf3 {[%emt 0:01:22]} h5 {[%emt 0:01:56]} 31. Ne2 {[%emt 0:01:30]} h4 {[%emt 0:00:36]} 32. Neg1 {[%emt 0:01:18]} Qh5 {[%emt 0:00:22]} 33. Qf1 {[%emt 0:01:15]} Bh6 {[%emt 0:01:24]} 34. Bd1 {[%emt 0:04:03]} Bg4 {[%emt 0:00:16]} 35. Qe1 {[%emt 0:01:52]} Nf8 {[%emt 0:05:12]} 36. Nh3 {[%emt 0:02:49]} Nd7 {[%emt 0:01:09]} 37. Nhg1 {[%emt 0:01:33]} Nf6 {[%emt 0:00:22]} 38. Bc2 {[%emt 0:00:24]} Bd7 {[%emt 0:02:15]} 39. Nd2 {[%emt 0:06:18]} Bxe3 {[%emt 0:03:20]} 40. Qxe3 {[%emt 0:03:03]} Ng4 {[%emt 0:00:22]} 41. Bd1 {[%emt 0:30:52]} Qh6 {[%emt 0:31:24]} 42. Qe2 {[%emt 0:00:00]} Nf2+ {[%emt 0:00:00]} 0-1

[Event "Skalica Open 2019"]
[Site "Skalica"]
[Date "2019.08.27"]
[Round "4.15"]
[White "Kalisky, Vladimir"]
[Black "Rakovsky, Jakub"]
[Result "1-0"]
[ECO "D02"]
[WhiteElo "2179"]
[BlackElo "1765"]
[Annotator "NA"]
[PlyCount "43"]
[EventDate "2019.08.25"]
[EventType "swiss"]
[EventCountry "SVK"]
[SourceTitle "playchess.com"]
[Source "ChessBase"]
[SourceQuality "1"]
[TimeControl "40/5400+30:1800+30"]

1. d4 {[%emt 0:00:00]} d5 {[%emt 0:00:03]} 2. Nf3 {[%emt 0:00:00]} e6 {[%emt 0:01:07]} 3. Bf4 {[%emt 0:00:13]} Nf6 {[%emt 0:00:28]} 4. e3 {[%emt 0:00:50]} c5 {[%emt 0:00:37]} 5. c3 {[%emt 0:00:13]} Nc6 {[%emt 0:00:26]} 6. Bd3 {[%emt 0:03:09]} c4 {[%emt 0:00:51]} 7. Bc2 {[%emt 0:00:40]} b5 {[%emt 0:02:15]} 8. Nbd2 {[%emt 0:01:23]} a5 {[%emt 0:00:57]} 9. O-O {[%emt 0:03:00]} h6 {[%emt 0:01:57]} 10. e4 {[%emt 0:03:06]} Bb7 {[%emt 0:03:48]} 11. exd5 {[%emt 0:02:59]} Nxd5 {[%emt 0:00:15]} 12. Bg3 {[%emt 0:00:54]} Bd6 {[%emt 0:01:51]} 13. Bxd6 {[%emt 0:12:44]} Qxd6 {[%emt 0:00:50]} 14. a4 {[%emt 0:00:20]} Ba6 {[%emt 0:04:08]} 15. axb5 {[%emt 0:01:19]} Bxb5 {[%emt 0:01:10]} 16. Ba4 {[%emt 0:02:31]} Ba6 {[%emt 0:12:57]} 17. Ne5 {[%emt 0:00:26]} Nde7 {[%emt 0:01:37]} 18. Qf3 {[%emt 0:00:59]} Rc8 {[%emt 0:01:53]} 19. Qxf7+ {[%emt 0:00:43]} Kd8 {[%emt 0:00:03]} 20. Qxg7 {[%emt 0:00:40]} Nxe5 {[%emt 0:03:25]} 21. Qxh8+ {[%emt 0:00:53]} Kc7 {[%emt 0:00:07]} 22. Qxe5 {[%emt 0:00:07]} 1-0

[Event "Skalica Open 2019"]
[Site "Skalica"]
[Date "2019.08.27"]
[Round "4.16"]
[White "Kuna, Martin"]
[Black "Hrbek, Stepan"]
[Result "0-1"]
[ECO "B33"]
[WhiteElo "1969"]
[BlackElo "2066"]
[Annotator "NA"]
[PlyCount "78"]
[EventDate "2019.08.25"]
[EventType "swiss"]
[EventCountry "SVK"]
[SourceTitle "playchess.com"]
[Source "ChessBase"]
[SourceQuality "1"]
[TimeControl "40/5400+30:1800+30"]

1. e4 {[%emt 0:00:00]} c5 {[%emt 0:00:00]} 2. Nf3 {[%emt 0:00:13]} Nc6 {[%emt 0:00:00]} 3. d4 {[%emt 0:00:28]} cxd4 {[%emt 0:00:00]} 4. Nxd4 {[%emt 0:00:06]} Nf6 {[%emt 0:00:00]} 5. Nc3 {[%emt 0:01:50]} e5 {[%emt 0:00:14]} 6. Ndb5 {[%emt 0:01:32]} d6 {[%emt 0:00:07]} 7. Bg5 {[%emt 0:00:26]} a6 {[%emt 0:00:48]} 8. Na3 {[%emt 0:00:22]} b5 {[%emt 0:00:05]} 9. Nd5 {[%emt 0:00:40]} Be7 {[%emt 0:00:43]} 10. Bxf6 {[%emt 0:00:57]} Bxf6 {[%emt 0:00:13]} 11. c3 {[%emt 0:00:29]} Bg5 {[%emt 0:00:15]} 12. Nc2 {[%emt 0:00:51]} Rb8 {[%emt 0:00:10]} 13. a4 {[%emt 0:06:09]} bxa4 {[%emt 0:00:31]} 14. Ncb4 {[%emt 0:00:05]} Nxb4 {[%emt 0:00:12]} 15. Nxb4 {[%emt 0:00:05]} Bd7 {[%emt 0:04:50]} 16. Qxd6 {[%emt 0:07:05]} Be7 {[%emt 0:14:27]} 17. Qd2 {[%emt 0:24:39]} Bxb4 {[%emt 0:12:06]} 18. cxb4 {[%emt 0:00:09]} Qb6 {[%emt 0:04:39]} 19. O-O-O {[%emt 0:27:20]} Be6 {[%emt 0:12:33]} 20. Qd6 {[%emt 0:08:34]} Qxb4 {[%emt 0:07:57]} 21. Qxb4 {[%emt 0:05:03]} Rxb4 {[%emt 0:00:41]} 22. Bxa6 {[%emt 0:00:18]} Ke7 {[%emt 0:17:21]} 23. Rd2 {[%emt 0:03:25]} Rxe4 {[%emt 0:09:11]} 24. f3 {[%emt 0:02:06]} Rb4 {[%emt 0:02:43]} 25. Re1 {[%emt 0:00:19]} f6 {[%emt 0:00:12]} 26. Re4 {[%emt 0:01:03]} Rb6 {[%emt 0:04:40]} 27. Bd3 {[%emt 0:01:17]} Ra8 {[%emt 0:03:41]} 28. Re3 {[%emt 0:02:47]} a3 {[%emt 0:00:55]} 29. bxa3 {[%emt 0:00:06]} Rxa3 {[%emt 0:00:04]} 30. Kd1 {[%emt 0:01:14]} Rbb3 {[%emt 0:00:48]} 31. Ke2 {[%emt 0:00:09]} Bc4 {[%emt 0:02:02]} 32. g4 {[%emt 0:01:59]} g6 {[%emt 0:00:37]} 33. h4 {[%emt 0:00:05]} Kf8 {[%emt 0:00:27]} 34. Rd1 {[%emt 0:00:52]} f5 {[%emt 0:00:10]} 35. gxf5 {[%emt 0:00:22]} gxf5 {[%emt 0:00:48]} 36. Rd2 {[%emt 0:00:45]} Rxd3 {[%emt 0:00:17]} 37. Rexd3 {[%emt 0:00:09]} Rxd3 {[%emt 0:00:13]} 38. Rxd3 {[%emt 0:00:02]} e4 {[%emt 0:00:04]} 39. fxe4 {[%emt 0:00:10]} fxe4 {[%emt 0:00:04]} 0-1

[Event "Skalica Open 2019"]
[Site "Skalica"]
[Date "2019.08.27"]
[Round "4.17"]
[White "Gasa, Patrik"]
[Black "Kovarikova, Maria"]
[Result "1-0"]
[ECO "A52"]
[WhiteElo "2187"]
[BlackElo "1854"]
[Annotator "NA"]
[PlyCount "71"]
[EventDate "2019.08.25"]
[EventType "swiss"]
[EventCountry "SVK"]
[SourceTitle "playchess.com"]
[Source "ChessBase"]
[SourceQuality "1"]
[TimeControl "40/5400+30:1800+30"]

1. d4 {[%emt 0:00:00]} Nf6 {[%emt 0:00:00]} 2. c4 {[%emt 0:00:00]} e5 {[%emt 0:00:00]} 3. dxe5 {[%emt 0:00:00]} Ng4 {[%emt 0:00:00]} 4. Nf3 {[%emt 0:00:00]} Bc5 {[%emt 0:00:00]} 5. e3 {[%emt 0:00:00]} Nc6 {[%emt 0:00:14]} 6. Nc3 {[%emt 0:00:16]} O-O {[%emt 0:01:25]} 7. Be2 {[%emt 0:04:10]} Ngxe5 {[%emt 0:01:45]} 8. O-O {[%emt 0:07:08]} Kh8 {[%emt 0:13:59]} 9. Nxe5 {[%emt 0:09:32]} Nxe5 {[%emt 0:00:21]} 10. f4 {[%emt 0:00:14]} Nc6 {[%emt 0:00:51]} 11. Kh1 {[%emt 0:01:20]} f5 {[%emt 0:01:32]} 12. e4 {[%emt 0:04:58]} d6 {[%emt 0:12:38]} 13. Bd3 {[%emt 0:06:30]} Nb4 {[%emt 0:12:28]} 14. Bb1 {[%emt 0:11:38]} Rf6 {[%emt 0:12:04]} 15. Qh5 {[%emt 0:31:17]} Be6 {[%emt 0:14:12]} 16. b3 {[%emt 0:14:50]} Bd4 {[%emt 0:07:26]} 17. Bd2 {[%emt 0:00:16]} Rh6 {[%emt 0:02:16]} 18. Qg5 {[%emt 0:00:01]} Bf6 {[%emt 0:00:13]} 19. Qg3 {[%emt 0:00:42]} Qd7 {[%emt 0:05:14]} 20. a3 {[%emt 0:06:10]} Nc6 {[%emt 0:00:24]} 21. exf5 {[%emt 0:00:33]} Bxf5 {[%emt 0:00:13]} 22. Bxf5 {[%emt 0:00:01]} Qxf5 {[%emt 0:00:09]} 23. Rad1 {[%emt 0:00:26]} Bh4 {[%emt 0:04:33]} 24. Qe3 {[%emt 0:00:10]} Bf6 {[%emt 0:00:56]} 25. Nd5 {[%emt 0:01:13]} Bd4 {[%emt 0:02:11]} 26. Qf3 {[%emt 0:00:24]} Bb6 {[%emt 0:07:01]} 27. Bc3 {[%emt 0:00:15]} Nd8 {[%emt 0:00:44]} 28. Rde1 {[%emt 0:00:43]} Ne6 {[%emt 0:00:22]} 29. g4 {[%emt 0:00:32]} Qf8 {[%emt 0:00:42]} 30. Rxe6 {[%emt 0:01:03]} Rxe6 {[%emt 0:00:09]} 31. f5 {[%emt 0:00:01]} Rh6 {[%emt 0:00:48]} 32. f6 {[%emt 0:00:35]} gxf6 {[%emt 0:00:29]} 33. Nxf6 {[%emt 0:00:54]} d5 {[%emt 0:00:37]} 34. Nxd5+ {[%emt 0:00:33]} Kg8 {[%emt 0:00:16]} 35. Qxf8+ {[%emt 0:00:08]} Rxf8 {[%emt 0:00:10]} 36. Ne7# {c6} 1-0

[Event "Skalica Open 2019"]
[Site "Skalica"]
[Date "2019.08.27"]
[Round "4.18"]
[White "Benes, Miroslav"]
[Black "Bilczewski, Kacper"]
[Result "0-1"]
[ECO "D45"]
[WhiteElo "2107"]
[BlackElo "2116"]
[Annotator "NA"]
[PlyCount "116"]
[EventDate "2019.08.25"]
[EventType "swiss"]
[EventCountry "SVK"]
[SourceTitle "playchess.com"]
[Source "ChessBase"]
[SourceQuality "1"]
[TimeControl "40/5400+30:1800+30"]

1. c4 {[%emt 0:00:00]} c6 {[%emt 0:00:00]} 2. Nf3 {[%emt 0:00:10]} d5 {[%emt 0:00:00]} 3. d4 {[%emt 0:00:30]} Nf6 {[%emt 0:00:00]} 4. Nc3 {[%emt 0:00:20]} e6 {[%emt 0:00:00]} 5. e3 {[%emt 0:00:33]} Nbd7 {[%emt 0:00:00]} 6. Qc2 {[%emt 0:00:42]} Bd6 {[%emt 0:00:00]} 7. g4 {[%emt 0:00:16]} dxc4 {[%emt 0:15:46]} 8. Bxc4 {[%emt 0:00:24]} Qe7 {[%emt 0:12:11]} 9. Bd2 {[%emt 0:05:02]} Nb6 {[%emt 0:31:29]} 10. Bd3 {[%emt 0:11:39]} Nbd5 {[%emt 0:04:23]} 11. a3 {[%emt 0:01:33]} Nxc3 {[%emt 0:11:27]} 12. Bxc3 {[%emt 0:03:34]} Nd5 {[%emt 0:00:49]} 13. Bd2 {[%emt 0:02:44]} Bd7 {[%emt 0:05:28]} 14. Ne5 {[%emt 0:19:52]} Bxe5 {[%emt 0:04:12]} 15. dxe5 {[%emt 0:00:02]} Qg5 {[%emt 0:00:07]} 16. O-O-O {[%emt 0:10:28]} Qxe5 {[%emt 0:00:13]} 17. e4 {[%emt 0:03:02]} Nf4 {[%emt 0:00:52]} 18. Bc3 {[%emt 0:02:49]} Qg5 {[%emt 0:03:40]} 19. Kb1 {[%emt 0:00:12]} e5 {[%emt 0:05:12]} 20. h4 {[%emt 0:05:01]} Qf6 {[%emt 0:00:30]} 21. Bc4 {[%emt 0:03:58]} O-O-O {[%emt 0:01:50]} 22. g5 {[%emt 0:00:42]} Qe7 {[%emt 0:00:36]} 23. Bb4 {[%emt 0:05:29]} c5 {[%emt 0:00:13]} 24. Bd5 {[%emt 0:07:21]} b6 {[%emt 0:01:16]} 25. Bb3 {[%emt 0:09:20]} Be6 {[%emt 0:00:43]} 26. Bc3 {[%emt 0:03:38]} Bxb3 {[%emt 0:01:00]} 27. Qxb3 {[%emt 0:00:01]} Rxd1+ {[%emt 0:00:12]} 28. Rxd1 {[%emt 0:00:11]} Rd8 {[%emt 0:00:07]} 29. Rxd8+ {[%emt 0:01:04]} Kxd8 {[%emt 0:00:04]} 30. a4 {[%emt 0:01:59]} Kc7 {[%emt 0:01:31]} 31. a5 {[%emt 0:00:15]} Ne2 {[%emt 0:00:47]} 32. a6 {[%emt 0:02:21]} Nxc3+ {[%emt 0:00:12]} 33. bxc3 {[%emt 0:00:26]} Qe6 {[%emt 0:00:15]} 34. c4 {[%emt 0:00:21]} Qd7 {[%emt 0:00:36]} 35. Qf3 {[%emt 0:00:44]} b5 {[%emt 0:01:04]} 36. Qc3 {[%emt 0:00:32]} Qd1+ {[%emt 0:00:23]} 37. Ka2 {[%emt 0:00:42]} Qa4+ {[%emt 0:00:28]} 38. Kb2 {[%emt 0:00:26]} Qb4+ {[%emt 0:00:19]} 39. Qxb4 {[%emt 0:00:30]} cxb4 {[%emt 0:00:03]} 40. Kb3 {[%emt 0:00:34]} bxc4+ {[%emt 0:00:09]} 41. Kxc4 {[%emt 0:01:47]} Kb6 {[%emt 0:00:04]} 42. Kxb4 {[%emt 0:00:06]} Kxa6 {[%emt 0:00:03]} 43. Kc5 {[%emt 0:00:21]} Ka5 {[%emt 0:02:42]} 44. h5 {[%emt 0:01:52]} h6 {[%emt 0:07:07]} 45. gxh6 {[%emt 0:03:26]} gxh6 {[%emt 0:00:04]} 46. Kd5 {[%emt 0:00:19]} Kb4 {[%emt 0:02:21]} 47. Kxe5 {[%emt 0:00:02]} a5 {[%emt 0:00:12]} 48. Kf6 {[%emt 0:00:07]} a4 {[%emt 0:00:07]} 49. e5 {[%emt 0:00:28]} a3 {[%emt 0:00:07]} 50. Kxf7 {[%emt 0:00:12]} a2 {[%emt 0:00:04]} 51. e6 {[%emt 0:00:04]} a1=Q {[%emt 0:00:07]} 52. e7 {[%emt 0:00:06]} Qa2+ {[%emt 0:00:26]} 53. Kg7 {[%emt 0:01:46]} Qe6 {[%emt 0:00:13]} 54. Kf8 {[%emt 0:00:12]} Qf6+ {[%emt 0:00:06]} 55. Ke8 {[%emt 0:00:37]} Kc5 {[%emt 0:00:38]} 56. Kd7 {[%emt 0:00:28]} Qc6+ {[%emt 0:01:31]} 57. Kd8 {[%emt 0:00:05]} Kd6 {[%emt 0:01:21]} 58. e8=N+ {[%emt 0:00:19]} Ke6 {[%emt 0:00:45]} 0-1

[Event "Skalica Open 2019"]
[Site "Skalica"]
[Date "2019.08.27"]
[Round "4.19"]
[White "Chan, Naruna"]
[Black "Londin, Simon"]
[Result "0-1"]
[ECO "B22"]
[WhiteElo "1950"]
[BlackElo "2038"]
[Annotator "NA"]
[PlyCount "92"]
[EventDate "2019.08.25"]
[EventType "swiss"]
[EventCountry "SVK"]
[SourceTitle "playchess.com"]
[Source "ChessBase"]
[SourceQuality "1"]
[TimeControl "40/5400+30:1800+30"]

1. e4 {[%emt 0:00:00]} c5 {[%emt 0:00:00]} 2. c3 {[%emt 0:00:00]} g6 {[%emt 0:00:00]} 3. Nf3 {[%emt 0:00:00]} Bg7 {[%emt 0:00:00]} 4. d4 {[%emt 0:00:00]} cxd4 {[%emt 0:00:00]} 5. cxd4 {[%emt 0:00:02]} d5 {[%emt 0:00:00]} 6. e5 {[%emt 0:00:05]} Bg4 {[%emt 0:00:13]} 7. Bb5+ {[%emt 0:00:08]} Nc6 {[%emt 0:00:43]} 8. Bxc6+ {[%emt 0:00:06]} bxc6 {[%emt 0:00:05]} 9. Nbd2 {[%emt 0:00:06]} e6 {[%emt 0:11:25]} 10. h3 {[%emt 0:07:40]} Bf5 {[%emt 0:00:45]} 11. O-O {[%emt 0:01:30]} Ne7 {[%emt 0:15:03]} 12. Re1 {[%emt 0:05:19]} h6 {[%emt 0:03:52]} 13. Nb3 {[%emt 0:11:48]} g5 {[%emt 0:00:27]} 14. Be3 {[%emt 0:04:06]} Bg6 {[%emt 0:04:04]} 15. Rc1 {[%emt 0:04:42]} O-O {[%emt 0:01:02]} 16. Bd2 {[%emt 0:00:11]} a5 {[%emt 0:02:18]} 17. Nc5 {[%emt 0:01:28]} Qc7 {[%emt 0:00:49]} 18. h4 {[%emt 0:08:09]} g4 {[%emt 0:00:45]} 19. Nh2 {[%emt 0:00:06]} h5 {[%emt 0:00:29]} 20. Bg5 {[%emt 0:02:08]} Nf5 {[%emt 0:00:28]} 21. Nxg4 {[%emt 0:09:29]} hxg4 {[%emt 0:01:20]} 22. Qxg4 {[%emt 0:00:04]} Kh8 {[%emt 0:12:46]} 23. h5 {[%emt 0:01:09]} Bh7 {[%emt 0:00:02]} 24. Qf4 {[%emt 0:02:59]} f6 {[%emt 0:08:20]} 25. exf6 {[%emt 0:10:56]} Qxf4 {[%emt 0:00:09]} 26. fxg7+ {[%emt 0:00:04]} Nxg7 {[%emt 0:00:06]} 27. Bxf4 {[%emt 0:00:03]} Rxf4 {[%emt 0:00:07]} 28. h6 {[%emt 0:00:02]} Nf5 {[%emt 0:05:32]} 29. Nxe6 {[%emt 0:00:09]} Rg4 {[%emt 0:00:21]} 30. f3 {[%emt 0:14:17]} Rg3 {[%emt 0:00:50]} 31. Kf2 {[%emt 0:01:05]} Rag8 {[%emt 0:00:01]} 32. Ng7 {[%emt 0:00:42]} Rg6 {[%emt 0:01:02]} 33. g4 {[%emt 0:02:55]} Nxd4 {[%emt 0:04:10]} 34. Red1 {[%emt 0:05:50]} Rxh6 {[%emt 0:01:35]} 35. Nh5 {[%emt 0:00:26]} Nc2 {[%emt 0:01:01]} 36. a3 {[%emt 0:00:50]} Rb8 {[%emt 0:00:30]} 37. Kg3 {[%emt 0:01:55]} Rxb2 {[%emt 0:01:21]} 38. Rh1 {[%emt 0:00:34]} Bg6 {[%emt 0:03:42]} 39. Nf6 {[%emt 0:02:32]} Rxh1 {[%emt 0:00:26]} 40. Rxh1+ {[%emt 0:00:05]} Kg7 {[%emt 0:00:03]} 41. g5 {[%emt 0:30:25]} d4 {[%emt 0:32:11]} 42. Rh2 {[%emt 0:02:37]} d3 {[%emt 0:02:07]} 43. Ng4 {[%emt 0:00:41]} Rb5 {[%emt 0:00:36]} 44. f4 {[%emt 0:00:10]} Rd5 {[%emt 0:00:16]} 45. Rd2 {[%emt 0:00:12]} Nxa3 {[%emt 0:00:37]} 46. Ne3 {[%emt 0:00:19]} Nb1 {[%emt 0:03:13]} 0-1